[Event "Charlotte Summer IM D 2022"]
[Site "Charlotte"]
[Date "2022.07.26"]
[Round "3.4"]
[White "Levine, Joseph"]
[Black "Leyva Rivera, Yunier"]
[Result "0-1"]
[ECO "B88"]
[WhiteElo "2294"]
[BlackElo "2379"]
[Annotator "TA"]
[PlyCount "100"]
[EventDate "2022.07.24"]
[EventType "tourn"]
[EventCountry "USA"]
[SourceTitle "playchess.com"]
[Source "ChessBase"]
[SourceQuality "1"]
[TimeControl "5400+30"]

{[%evp 32,100,37,27,31,26,43,43,75,0,0,0,0,0,0,0,8,0,16,8,14,-25,-29,-16,-21,-37,-22,-76,-41,-35,-35,-43,0,0,0,-72,-14,-20,-9,-274,0,0,45,45,69,79,76,89,225,271,247,229,140,0,0,0,182,182,383,-362,-361,-402,-391,-366,-243,-946,-569,-2129,-1923,-4894,-2007]} 1. e4 {[%emt 0:00:10]} c5 {[%emt 0:01:34]} 2. Nf3 {[%emt 0:00:03]} d6 {[%emt 0:00:20]} 3. d4 {[%emt 0:00:02]} cxd4 {[%emt 0:00:06]} 4. Nxd4 {[%emt 0:00:04]} Nf6 {[%emt 0:00:06]} 5. Nc3 {[%emt 0:00:04]} Nc6 {[%emt 0:00:05]} 6. Bc4 {[%emt 0:00:05]} e6 {[%emt 0:00:22]} 7. Be3 {[%emt 0:00:03]} Be7 {[%emt 0:00:10]} 8. O-O {[%emt 0:00:05]} O-O {[%emt 0:00:18]} 9. Bb3 {[%emt 0:00:04]} a6 {[%emt 0:02:57]} 10. f4 {[%emt 0:00:06]} Nxd4 {[%emt 0:00:59]} 11. Bxd4 {[%emt 0:00:04]} b5 {[%emt 0:00:10]} 12. e5 {[%emt 0:00:05]} dxe5 {[%emt 0:00:06]} 13. fxe5 {[%emt 0:00:05]} Nd7 {[%emt 0:00:10]} 14. Ne4 {[%emt 0:00:19]} Bb7 {[%emt 0:00:05]} 15. Nd6 {[%emt 0:00:06]} Bxd6 {[%emt 0:00:07]} 16. exd6 {[%emt 0:00:02]} Qg5 {[%emt 0:00:19]} 17. Qe2 {[%emt 0:00:54]} Kh8 {[%emt 1:31:06] B88: Sicilian: Sozin Attack.} 18. a4 {[%emt 0:07:11]} e5 {[%emt 0:00:00]} 19. Bc3 {[%emt 0:14:45]} Qg6 {[%emt 0:00:00] White is slightly better.} 20. Rad1 {[%emt 0:10:27]} (20. axb5 $16 axb5 21. Rad1) 20... bxa4 $11 {[%emt 0:00:00]} 21. Bxa4 {[%emt 0:06:42] A strong pair of Bishops.} Nc5 {[%emt 0:00:00]} 22. b3 {[%emt 0:11:52]} Rad8 {[%emt 0:00:00] [#]} 23. Bb4 $146 {[%emt 0:09:01]} (23. Bxe5 Nxa4 24. Rd3 (24. bxa4 $2 Rfe8 $19) 24... f6 $17) ({Predecessor:} 23. d7 Nxa4 24. bxa4 Qc6 25. Bxe5 f6 26. Rd6 Qxa4 27. Rf4 Qa5 28. Rdxf6 gxf6 29. Rxf6 Qc5+ 30. Rf2+ {1-0 (30) Kotsur,P (2499)-Belozerov,A (2437) Novokuznetsk 1999}) 23... Nxa4 {[%emt 0:00:00]} 24. bxa4 {[%emt 0:00:22]} Rd7 {[%emt 0:00:00]} 25. Rf2 {[%emt 0:07:43]} Qe6 {[%emt 0:00:00]} 26. a5 {[%emt 0:09:51]} Rc8 {[%emt 0:00:00]} 27. c3 {[%emt 0:04:41]} f6 {[%emt 0:00:00]} 28. Rd4 {[%emt 0:02:52]} h6 {[%emt 0:00:23]} 29. c4 {[%emt 0:05:45]} (29. h3 $1 $11) 29... Re8 {[%emt 0:00:21]} (29... Bc6 $5 {[%cal Rd7b7]} 30. c5 Rb7 $15) 30. Rd1 {[%emt 0:05:13]} e4 {[%emt 0:01:14]} 31. c5 {[%emt 0:03:40]} Qb3 {[%emt 0:00:06]} 32. Rd4 {[%emt 0:02:00]} e3 {[%emt 0:00:33]} 33. Rf1 {[%emt 0:00:48]} (33. Rff4 $1 $11) 33... Re5 {[%emt 0:00:17]} (33... Re4 $17 34. Rfd1 Rxd4 35. Rxd4 Bc6) 34. h4 {[%emt 0:00:53]} Bc6 {[%emt 0:02:01] Strongly threatening ...Bb5.} 35. Re1 $2 {[%emt 0:00:46][%mdl 8192]} (35. Qxa6 $2 e2 36. Rg4 (36. Qc8+ $2 Kh7 $19) 36... exf1=Q+ $19) (35. Qc4 $11 {and White stays safe.} Qb2 36. Rg4) 35... Bb5 $2 {[%emt 0:01:08]} ({Black should play} 35... Rb7 $1 $19 {[%cal Rb7b4]} 36. Qc4 (36. Qg4 $2 Kh7 $19) 36... Rxb4 37. Qxb3 (37. Qxb4 $2 Qa2 $19) 37... Rxb3) 36. Qf3 {[%emt 0:00:35] And now c6 would win.} Qb2 {[%emt 0:00:15]} 37. Rf4 {[%emt 0:00:37]} Rd8 {[%emt 0:03:10]} 38. Kh2 {[%emt 0:00:49]} Qc2 {[%emt 0:00:31]} (38... g5 $2 39. Rxf6 $1 (39. hxg5 Rxg5 40. Rxf6 Bc6 $16) 39... Ree8 40. Rxe3 $1 Rxe3 41. Rxh6+ Kg7 42. Qxe3 $18) 39. Rxe3 {[%emt 0:00:34]} Bc6 {[%emt 0:00:30] [#]} 40. Qxc6 $1 $18 {[%emt 0:00:13] Hoping for Rxe5.} Rxe3 {[%emt 0:00:01][%cal Be5e3,Be3d3,Bd3d4][%mdl 32]} 41. Qc7 $1 {[%emt 0:00:45]} (41. Qb6 Rg8 $14) 41... Rg8 {[%emt 0:00:32] [#] White must now prevent ...Qg6.} 42. d7 {[%emt 0:00:28]} (42. Qf7 $1 $16) 42... Rd3 $1 $11 {[%emt 0:00:54]} 43. c6 {[%emt 0:00:31] Qb6 is the strong threat.} Qc1 $2 {[%emt 0:00:32] [#]} (43... Rd1 $1 $11) 44. Re4 $1 $18 {[%emt 0:00:31]} Kh7 $2 {[%emt 0:01:02]} (44... Rd1 {was called for.}) 45. Qf4 $4 {[%emt 0:00:30][%mdl 8192]} ({Not} 45. Re8 Rxd7 46. Qxd7 Qf4+ 47. Kh3 (47. g3 Qf2+ 48. Kh3 Qf1+ 49. Kh2 Qf2+ 50. Kh3 Qf1+ 51. Kh2 Qf2+ $11) 47... Rxe8 48. Qxe8 Qxb4 $11) (45. Qb6 $18 {and all is fine.}) 45... Qxc6 $19 {[%emt 0:00:00]} 46. Qf5+ {[%emt 0:00:26]} Kh8 {[%emt 0:00:00]} 47. Re7 {[%emt 0:00:31]} Rd4 {[%emt 0:00:00]} 48. Bc5 $2 {[%emt 0:00:34]} (48. Qc5 Qd5 49. Qxd5 Rxd5 50. Bc3) 48... Rd5 {[%emt 0:00:00] Black is clearly winning.} 49. Qg4 {[%emt 0:00:29]} Qxc5 {[%emt 0:00:08]} 50. Qe4 {[%emt 0:01:04]} Qc7+ {[%emt 0:02:52] Weighted Error Value: White=0.83/Black=0.51} 0-1

[Event "Charlotte Summer IM D 2022"]
[Site "Charlotte"]
[Date "2022.07.26"]
[Round "3.5"]
[White "Vigorito, David"]
[Black "Oberoi, Shelev"]
[Result "1-0"]
[ECO "D02"]
[WhiteElo "2295"]
[BlackElo "2259"]
[Annotator "TA"]
[PlyCount "151"]
[EventDate "2022.07.24"]
[EventType "tourn"]
[EventCountry "USA"]
[SourceTitle "playchess.com"]
[Source "ChessBase"]
[SourceQuality "1"]
[TimeControl "5400+30"]

{[%evp 9,151,33,30,39,54,59,63,56,85,73,77,72,85,69,76,18,66,56,53,65,54,54,81,79,85,91,98,113,134,100,147,160,171,156,263,161,163,168,148,174,185,180,178,19,20,22,25,37,60,75,60,57,127,133,160,164,185,201,187,194,187,155,187,154,191,150,172,138,200,204,204,204,204,204,279,283,504,483,422,187,187,187,188,141,141,141,164,141,166,29,636,635,631,611,587,554,1114,1114,29964,29965,29953,11597,29961,29961,29950,29961,29959,29953,5047,29956,29947,7791,29977,9626,6436,5422,29976,2657,2883,2398,29969,29970,29969,29970,29974,29976,29976,29977,29979,29980,29980,29965,29987,29988,29988,29989,29989,29990,29990,29989,29990,29991,29991,29992]} 1. Nf3 {[%emt 0:03:11]} d5 {[%emt 0:00:11]} 2. g3 {[%emt 0:00:21]} Nc6 {[%emt 0:00:09]} 3. d4 {[%emt 0:03:49]} Bf5 {[%emt 0:00:10]} 4. Bg2 {[%emt 0:00:08]} e6 {[%emt 0:02:27]} 5. O-O {[%emt 0:00:45]} Nb4 {[%emt 0:00:26]} 6. Ne1 {[%emt 0:11:33] D02: 1 d4 d5 2 Nf3 sidelines, including 2...Nf6 3 g3 and 2...Nf6 3 Bf4.} h5 {[%emt 0:01:44] [#]} 7. c4 $146 {[%emt 0:03:03]} ({Predecessor:} 7. h4 Nf6 8. Bg5 Be7 9. Nd2 Ng4 10. e4 dxe4 11. Nxe4 Bxe4 12. Bxe7 Qxe7 13. Bxe4 {0-1 (27) Donchenko,A (2636)-Kollars,D (2635) Chess.com INT 2022}) 7... c6 {[%emt 0:02:23]} 8. Nc3 {[%emt 0:01:34] White is slightly better.} Nf6 {[%emt 0:05:23]} 9. Qb3 {[%emt 0:09:42]} Qd7 {[%emt 0:10:43]} 10. a3 {[%emt 0:02:01]} Na6 {[%emt 0:03:56]} 11. Nf3 {[%emt 0:00:16]} Bd6 {[%emt 0:05:34]} 12. Ng5 {[%emt 0:08:09]} (12. c5 $16 Be7 13. Bf4) 12... O-O {[%emt 0:11:51]} (12... h4 $11) 13. e4 $14 {[%emt 0:09:04]} dxe4 {[%emt 0:01:06]} 14. Ngxe4 {[%emt 0:01:19]} Be7 {[%emt 0:00:42]} 15. Be3 {[%emt 0:01:28]} Ng4 {[%emt 0:04:08]} 16. Bf4 $1 {[%emt 0:05:21]} Rac8 {[%emt 0:06:18]} 17. Rad1 {[%emt 0:01:03]} Rfd8 {[%emt 0:06:44]} 18. Rfe1 {[%emt 0:08:12]} b6 {[%emt 0:06:59]} 19. Qa4 {[%emt 0:07:41] White is more active.} Qb7 {[%emt 0:02:42]} (19... Nb8 $142) 20. b4 $1 $16 {[%emt 0:04:16]} Nb8 {[%emt 0:02:22]} 21. b5 {[%emt 0:03:58]} Kf8 {[%emt 0:12:47]} (21... cxb5 $16 {was called for.} 22. cxb5 (22. Qxb5 Qd7 $14) 22... Qd7) 22. Bxb8 {[%emt 0:07:00]} cxb5 {[%emt 0:06:03] [#]} 23. Nxb5 {[%emt 0:00:13][%cal Bc3b5,Bb5a7,Ba7c6][%mdl 32]} Qxb8 {[%emt 0:03:26]} 24. Nxa7 {[%emt 0:00:32]} Rc7 {[%emt 0:01:03]} 25. Nc6 {[%emt 0:01:43]} Qa8 {[%emt 0:01:09]} 26. Nc3 {[%emt 0:01:39]} (26. Qxa8 $18 Rxa8 27. Nxe7 Rxe7 28. h3) 26... Qxa4 $11 {[%emt 0:01:18]} 27. Nxa4 {[%emt 0:00:02] Pair of Knights!} Rd6 {[%emt 0:00:27]} 28. Nxe7 {[%emt 0:04:40]} Kxe7 {[%emt 0:00:01]} 29. c5 {[%emt 0:00:17]} bxc5 {[%emt 0:00:10]} 30. Nxc5 {[%emt 0:00:16]} Ra7 {[%emt 0:00:45]} (30... Nf6 $14) 31. a4 $16 {[%emt 0:00:12]} Nf6 {[%emt 0:01:16] [#]} 32. a5 $1 {[%emt 0:01:06]} Rxa5 {[%emt 0:01:23]} 33. Nb7 $1 {[%emt 0:00:06][%csl LRa5,LRd6]} Ra4 {[%emt 0:00:35]} 34. Nxd6 {[%emt 0:00:10]} Kxd6 {[%emt 0:00:00]} 35. h3 {[%emt 0:01:20]} Nd5 {[%emt 0:01:00]} 36. Rd2 {[%emt 0:00:21]} Nb4 {[%emt 0:00:26]} 37. Kh2 {[%emt 0:00:32]} g5 {[%emt 0:00:37]} 38. Red1 {[%emt 0:00:50]} h4 {[%emt 0:00:28]} (38... Nc2 $16 39. d5 e5) 39. gxh4 $18 {[%emt 0:00:17]} gxh4 {[%emt 0:00:01]} 40. d5 {[%emt 0:00:36]} e5 {[%emt 0:00:18]} 41. Rc1 {[%emt 0:00:42] Prevents Bc2. Hoping for Rc4.} Ra3 {[%emt 0:01:18]} 42. Rc4 $1 {[%emt 0:00:21][%csl LRb4,LRh4]} Rd3 $2 {[%emt 0:00:24]} (42... Nd3 {was necessary.} 43. Rxh4 Nf4 44. Rh6+ Bg6) 43. Rxd3 {[%emt 0:00:30]} Nxd3 {[%emt 0:00:01][%mdl 4096] Endgame KRB-KBN} 44. Kg1 {[%emt 0:01:17]} (44. Rxh4 $142 Bg6 45. Rh6) 44... Nf4 {[%emt 0:01:36]} 45. Rc6+ {[%emt 0:00:04]} Kd7 {[%emt 0:00:00]} 46. Rh6 {[%emt 0:00:41]} ({White should play} 46. Kh2 $18) 46... Bxh3 $16 {[%emt 0:00:00]} 47. Be4 {[%emt 0:00:51]} Bg4 {[%emt 0:00:51]} 48. Rxh4 {[%emt 0:00:22]} f5 {[%emt 0:00:17]} 49. Bh1 {[%emt 0:00:26]} (49. Rh7+ $18 Kd6 50. Rh6+ Kc5 51. f3 (51. Rc6+ Kd4 $16)) 49... e4 $2 {[%emt 0:00:43][%mdl 8192] [#] Black cannot hold the game after this.} (49... Bh5 $11) 50. Bxe4 $1 $18 {[%emt 0:00:36][%mdl 512]} Ne2+ {[%emt 0:00:31]} (50... Nh3+ 51. Kg2) 51. Kf1 {[%emt 0:00:33]} Nc3 {[%emt 0:00:34]} 52. Bg2 {[%emt 0:00:18]} Be2+ {[%emt 0:00:25]} 53. Ke1 {[%emt 0:00:12] White threatens Kd2 and mate.} Bb5 {[%emt 0:00:25]} 54. Kd2 {[%emt 0:00:32]} Nb1+ {[%emt 0:00:27]} 55. Ke3 {[%emt 0:00:10] Kd4 would kill now.} Kd6 {[%emt 0:00:35]} 56. Kd4 Nd2 {[%emt 0:01:12]} 57. Rh6+ {[%emt 0:00:37]} Kd7 {[%emt 0:00:00]} 58. Rf6 {[%emt 0:01:30]} Nb3+ {[%emt 0:00:00]} 59. Ke5 {[%emt 0:00:07]} Na5 {[%emt 0:00:13]} 60. Rf7+ {[%emt 0:00:56]} Kd8 {[%emt 0:01:06]} 61. Rxf5 {[%emt 0:00:45]} (61. d6 $142 Ke8 62. Rc7 Nc4+ 63. Ke6 Nxd6 64. Kxd6 Kf8 65. Ke6 Be2 66. Bh3) 61... Nc4+ {[%emt 0:00:18]} 62. Kd4 {[%emt 0:00:11] Intending Rg5 and mate.} Nd6 {[%emt 0:00:15]} 63. Rh5 {[%emt 0:00:08]} (63. Rf6 $142 Kc7 64. Kc5 Bf1 65. Rxd6 Bxg2 66. f4 Bh3 {[#]} 67. Re6 $1 {[%mdl 512]} Bxe6 68. dxe6) 63... Be8 {[%emt 0:00:27]} 64. Rg5 {[%emt 0:00:31]} Ke7 {[%emt 0:00:11]} 65. Be4 {[%emt 0:00:11] White mates.} Kf6 {[%emt 0:00:19]} 66. f4 {[%emt 0:00:22]} Bf7 {[%emt 0:00:51]} 67. Bd3 {[%emt 0:00:12]} Nb7 {[%emt 0:00:15]} 68. Rg1 {[%emt 0:00:33]} Nd6 {[%emt 0:01:02]} 69. Ra1 {[%emt 0:00:06]} Be8 {[%emt 0:00:24]} 70. Ra7 {[%emt 0:01:09]} Nc8 {[%emt 0:00:55]} 71. Ra6+ {[%emt 0:00:15]} Ke7 {[%emt 0:00:06]} 72. Ke5 {[%emt 0:00:10]} Kd8 {[%emt 0:01:01]} 73. d6 {[%emt 0:00:27]} Bd7 {[%emt 0:00:32]} 74. Bf5 {[%emt 0:00:56]} Bxf5 {[%emt 0:00:16]} 75. Kxf5 {[%emt 0:00:04]} Kd7 {[%emt 0:00:08]} 76. Ke5 {[%emt 0:00:10] Weighted Error Value: White=0.24 (precise) /Black=0.64} 1-0

[Event "Charlotte Summer IM D 2022"]
[Site "Charlotte"]
[Date "2022.07.26"]
[Round "4.1"]
[White "Bacus, Dharim"]
[Black "Oberoi, Shelev"]
[Result "0-1"]
[ECO "B45"]
[WhiteElo "2227"]
[BlackElo "2259"]
[Annotator "TA"]
[PlyCount "64"]
[EventDate "2022.07.24"]
[EventType "tourn"]
[EventCountry "USA"]
[SourceTitle "playchess.com"]
[Source "ChessBase"]
[SourceQuality "1"]
[TimeControl "5400+30"]

{[%evp 22,64,41,19,75,64,86,90,89,91,106,54,133,116,155,120,90,102,105,66,50,0,25,0,62,0,96,109,118,-169,-220,-210,-209,-181,-219,-214,-199,-288,-286,-626,0,0,0,0,0]} 1. e4 {[%emt 0:00:03]} c5 {[%emt 0:00:55]} 2. Nf3 {[%emt 0:01:12]} e6 {[%emt 0:00:52]} 3. d4 {[%emt 1:30:45]} cxd4 {[%emt 0:00:13]} 4. Nxd4 {[%emt 0:00:00]} Nc6 {[%emt 0:00:18]} 5. Nc3 {[%emt 0:00:00][%cal Bb1c3,Bc3e4,Be4f2,Bf2d3][%mdl 32]} Nf6 {[%emt 0:00:08]} 6. Nxc6 {[%emt 0:00:00]} bxc6 {[%emt 0:00:09]} 7. e5 {[%emt 0:00:00]} Nd5 {[%emt 1:31:25]} 8. Ne4 {[%emt 0:00:00]} Qc7 {[%emt 0:00:00]} 9. f4 {[%emt 0:00:00]} Qb6 {[%emt 0:00:00]} 10. c4 {[%emt 0:00:00]} Bb4+ {[%emt 0:00:00]} 11. Ke2 {[%emt 0:00:00]} f5 {[%emt 0:00:00]} 12. Nf2 {[%emt 0:00:00]} (12. exf6 $5 Nxf6 13. Be3 $14) 12... Nc7 {[%emt 0:00:00] B45: Sicilian Four Knights.} (12... Ba6 $11) 13. Nd3 {[%emt 0:00:00]} Be7 {[%emt 0:00:00]} 14. Be3 {Inhibits Qd4.} c5 {[%emt 0:00:00] White is better.} 15. b4 {[%emt 0:00:00] [#]} Qb7 $146 {[%emt 0:00:00]} ({Predecessor:} 15... a5 16. b5 Bb7 17. Nb2 Be4 18. Na4 Qb7 19. Kf2 Rc8 20. Rg1 Na8 21. g3 Nb6 {1-0 (36) Tejedor Fuente,E (2430)-Aguilera Lopez,A (2196) La Roda 2021}) 16. b5 {[%emt 0:00:00]} (16. bxc5 Qe4 $15) (16. Bxc5 Bxc5 17. bxc5 Qe4+ 18. Kf2 Qxc4 $15) (16. a3 $1 $16) 16... Qe4 {[%emt 0:00:00]} ({Black should play} 16... a6 $1 $14) 17. Rc1 $16 {[%emt 0:00:00]} g5 {[%emt 0:00:00]} 18. Nf2 {[%emt 0:00:00]} Qb7 {[%emt 0:00:00]} 19. fxg5 {[%emt 0:00:00]} O-O {[%emt 0:00:00]} 20. Bf4 {[%emt 0:00:00]} a6 {[%emt 0:00:00]} 21. a4 {[%emt 0:00:00] Threatens to win with h4.} (21. b6 $5 Qxb6 22. Rb1 $14) 21... axb5 {[%emt 0:00:00]} 22. axb5 {[%emt 0:00:00] h4 is the strong threat.} Ra2+ {[%emt 0:00:00]} (22... d6 $11) 23. Rc2 {[%emt 0:00:00]} (23. Ke1 $1 $14) 23... Qa8 {[%emt 0:00:00]} (23... Ra4 $11 {remains equal.} 24. g3 Qa8) 24. Rxa2 {[%emt 0:00:00]} Qxa2+ {[%emt 0:00:00]} 25. Ke3 $2 {[%emt 0:00:00][%mdl 8192]} (25. Ke1 $1 $16 {keeps the pressure on.}) 25... d5 $1 $19 {[%emt 0:00:00]} ({Much less strong is} 25... Qb2 26. Qd2 Qb3+ 27. Qd3 $16) 26. exd6 {[%emt 0:00:00]} e5 $1 {[%emt 0:00:00]} 27. dxe7 {[%emt 0:00:00]} exf4+ {[%emt 0:00:00]} 28. Kd3 {[%emt 0:00:00] [#]} Re8 {[%emt 0:01:30][%mdl 1024] Black has strong compensation. Really sharp!} 29. Qc2 {[%emt 0:07:25] [#]} (29. Qd2 $142 Qa8 30. Kc2 (30. b6 $2 Rxe7 31. Qb2 Ne6 $19)) 29... Qa8 $1 {[%cal Oc7b5] White must now prevent ...Nxb5!} 30. Kc3 $2 ({Reject} 30. b6 Ne6 31. Qc3 Rxe7 $19) (30. Qc3 Rxe7 31. Kc2) 30... Qa1+ $2 {[%emt 0:01:00]} (30... Ne6 $19 31. Kb2 Rxe7) 31. Qb2 $1 $11 Qa5+ {[%emt 0:00:30]} 32. Kc2 {Hoping for Bd3.} Ne6 {[%emt 0:00:30][%mdl 32768] Weighted Error Value: White=0.59/Black=0.37. Loss on time!?} 0-1

[Event "Charlotte Summer IM D 2022"]
[Site "Charlotte"]
[Date "2022.07.26"]
[Round "4.2"]
[White "Leyva Rivera, Yunier"]
[Black "Vigorito, David"]
[Result "1/2-1/2"]
[ECO "E65"]
[WhiteElo "2379"]
[BlackElo "2295"]
[Annotator "TA"]
[PlyCount "53"]
[EventDate "2022.07.24"]
[EventType "tourn"]
[EventCountry "USA"]
[SourceTitle "playchess.com"]
[Source "ChessBase"]
[SourceQuality "1"]
[TimeControl "5400+30"]

{[%evp 22,28,5,-3,-3,0,-11,-11,-13]} 1. d4 {[%emt 0:00:05]} Nf6 {[%emt 1:31:00]} 2. Nf3 {[%emt 0:02:34]} g6 {[%emt 0:00:00]} 3. g3 {[%emt 0:00:22]} Bg7 {[%emt 0:00:00]} 4. Bg2 {[%emt 0:00:02]} c5 {[%emt 0:00:00]} 5. c4 {[%emt 0:05:12]} O-O {[%emt 0:00:00]} 6. Nc3 {[%emt 0:02:09]} d6 {[%emt 0:00:00]} 7. O-O {[%emt 0:01:31]} Nc6 {[%emt 0:00:00]} 8. dxc5 {[%emt 0:05:33]} dxc5 {[%emt 0:00:00]} 9. Be3 {[%emt 0:00:18]} Be6 {[%emt 0:00:00]} 10. Bxc5 {[%emt 0:13:11]} Qa5 {[%emt 0:04:30]} 11. Ba3 {[%emt 0:01:37]} Bxc4 {[%emt 0:00:00]} 12. Nd4 {[%emt 0:00:25] The position is equal.} Nxd4 {[%emt 0:00:00] E65: King's Indian: Fianchetto: 6...c5 7 0-0 without d5 by White.} 13. Qxd4 {[%emt 0:02:51]} Rac8 {[%emt 0:00:00][%cal Of6d5] [#] White must now prevent ...Nd5!} 14. Qe3 {[%emt 0:04:32]} (14. Bxb7 $2 {[#]} Nd5 $1 15. Qxd5 (15. Qg4 $2 Nxc3 16. bxc3 f5 $19) 15... Bxd5 16. Nxd5 Rc2 17. Nxe7+ Kh8 $19) 14... Rc7 {[%emt 0:00:00] [#] A balanced but interesting game.  Weighted Error Value: White=0.04 (flawless) /Black=0.00 (flawless)} ({Much less strong is} 14... Qh5 15. Qxa7 Nd5 16. Nxd5 (16. Qxb7 Rc7 $15) 16... Bxd5 17. Qa5 (17. Bxe7 Rfe8 $11) 17... Bxg2 18. Qxh5 gxh5 19. Kxg2 $16) {Predecessor:} 15. Rfd1 $146 b5 16. Bxe7 Re8 17. Bxf6 Rxe3 18. Rd8+ Bf8 19. fxe3 Qa6 20. Ne4 Rc8 21. Rad1 Rxd8 22. Rxd8 Qe6 23. Bd4 f5 24. Nf6+ Kf7 25. b3 Qa6 26. bxc4 Qa5 27. Bd5+ {1-0 (27) Pavlov,S (2524)-Kryakvin,D (2603) Senta 2010} 1/2-1/2

[Event "Charlotte Summer IM D 2022"]
[Site "Charlotte"]
[Date "2022.07.26"]
[Round "4.3"]
[White "Wen, Teddie"]
[Black "Levine, Joseph"]
[Result "1/2-1/2"]
[ECO "D24"]
[WhiteElo "2234"]
[BlackElo "2294"]
[Annotator "TA"]
[PlyCount "52"]
[EventDate "2022.07.24"]
[EventType "tourn"]
[EventCountry "USA"]
[SourceTitle "playchess.com"]
[Source "ChessBase"]
[SourceQuality "1"]
[TimeControl "5400+30"]

{[%evp 9,52,30,50,-22,-21,-27,-4,-11,-19,-23,-25,-28,-12,-31,-16,-24,-15,-28,122,112,129,112,114,112,281,293,289,287,263,300,307,304,261,281,264,185,223,130,198,208,181,75,67,2,213]} 1. d4 {[%emt 0:02:05]} d5 {[%emt 0:00:01]} 2. c4 {[%emt 0:00:06]} e6 {[%emt 0:00:02]} 3. Nf3 {[%emt 0:00:03]} Nf6 {[%emt 0:00:05]} 4. Nc3 {[%emt 0:00:06]} dxc4 {[%emt 0:00:03]} 5. e4 {[%emt 0:02:42]} b5 {[%emt 0:00:01]} 6. Bg5 {[%emt 0:03:55] D24: Queen's Gambit Accepted: 3 Nf3 Nf6 4 Nc3.} ({White should play} 6. e5 $14 Nd5 7. Nxb5) 6... a6 $11 {[%emt 0:00:54]} 7. e5 {[%emt 0:08:31]} h6 {[%emt 0:00:28]} 8. Bh4 {[%emt 0:01:11][%mdl 64] Pin} g5 {[%emt 0:00:08]} 9. Nxg5 {[%emt 0:00:05]} hxg5 {[%emt 0:00:07]} 10. Bxg5 {[%emt 0:00:04][%mdl 64] Pin} Nbd7 {[%emt 1:33:41] next ...Bh6 is good for Black.} 11. exf6 {[%emt 0:02:47]} Bb7 {[%emt 0:00:00] Prevents Qf3.} 12. Be2 {[%emt 0:04:38]} Bxg2 {[%emt 0:00:00]} 13. Rg1 {[%emt 0:00:10]} Rxh2 {[%emt 0:00:00]} (13... Bb7 $11) 14. Bf3 $16 {[%emt 0:10:25]} Bxf3 {[%emt 0:00:00]} 15. Qxf3 {[%emt 0:00:03] Strongly threatening 0-0-0.} Nb6 {[%emt 0:00:00] [#]} 16. O-O-O $1 {[%emt 0:01:43] [#]} Nd5 $146 {[%emt 0:00:00]} (16... Qd7 $16) ({Predecessor:} 16... Qd7 17. d5 O-O-O 18. Be3 Nxd5 19. Nxd5 exd5 20. Rg5 c6 21. Bf4 Rh3 22. Bg3 Bd6 {1-0 (36) Baskin,R (2390)-Smirnov,P (2544) Chess.com INT 2021}) 17. Rge1 $18 {[%emt 0:02:23] And now Nxd5 would win.} c6 {[%emt 0:00:00] [#]} 18. Rxe6+ $3 {[%emt 0:01:56][%mdl 512]} fxe6 {[%emt 0:00:00]} 19. f7+ {[%emt 0:00:03][%mdl 64] Discovered Attack} Kd7 {[%emt 0:04:30]} 20. Bxd8 {[%emt 0:57:34]} Rxd8 {[%emt 0:00:00]} 21. Nxd5 {[%emt 0:00:00]} cxd5 {[%emt 0:01:00]} 22. Rg1 {[%emt 0:00:00]} Rh4 {[%emt 0:00:00]} 23. Rg8 {[%emt 0:00:00]} (23. Re1 $18) 23... b4 {[%emt 0:00:00]} (23... Rc8 $16 {was necessary.} 24. Qf6 Rh5) 24. Qf6 {[%emt 0:00:00]} Rh1+ {[%emt 0:00:00] [#]} 25. Kd2 {[%emt 0:00:00] Dancing on a razor blade.} (25. Kc2 $1 $18 {is more deadly. Black must now prevent Qe5.} Rc8 26. Qe5) 25... Rc8 $16 {[%emt 0:00:00]} 26. Kc2 {[%emt 0:00:00]} (26. Rg3 $1 $14) 26... Rh5 $2 {[%emt 0:00:00] Weighted Error Value: White=0.24 (precise) /Black=0.38} (26... a5 $11 {and Black is okay.}) 1/2-1/2